fUSD/lending_fUSD_20260617
["ID","MTS","AMOUNT","RATE_DAILY","PERIOD"]
[425291930,1781655043000,-1107.63007,0.00022117,2]
[425291932,1781655043000,-1148.61238259,0.00022117,2]
[425291939,1781655043000,-151.0,0.00022117,2]
[425292000,1781655043000,-151.0,0.00022117,2]
[425291960,1781655043000,-1934.38338736,0.00022117,2]
[425291948,1781655043000,-174.61919141,0.00022117,2]
[425291946,1781655043000,-1280.88388877,0.00022117,2]
[425291950,1781655043000,-1328.27659266,0.00022117,2]
[425291934,1781655043000,-151.0,0.00022117,2]
[425291943,1781655043000,-151.0,0.00022117,2]
[425291952,1781655043000,-151.0,0.00022117,2]
[425291956,1781655043000,-151.0,0.00022117,2]
[425291954,1781655043000,-1377.42282658,0.00022117,2]
[425291937,1781655043000,-1191.11104074,0.00022117,2]
[425292005,1781655043000,-1712.93078311,0.00022117,2]
[425291941,1781655043000,-1235.18214925,0.00022117,2]
[425292015,1781655043000,-151.0,0.00022117,2]
[425292055,1781655043000,-500.0,0.00022117,2]
[425292069,1781655043000,-500.0,0.00022117,2]
[425292071,1781655043000,-152.0,0.00022117,2]
[425292073,1781655043000,-151.0,0.00022117,2]
[425292067,1781655043000,-500.0,0.00022117,2]
[425292065,1781655043000,-151.0,0.00022117,2]
[425292075,1781655043000,-500.0,0.00022117,2]
[425292051,1781655043000,-2054.15682156,0.00022117,2]
[425292057,1781655043000,-152.0,0.00022117,2]
[425292059,1781655043000,-500.0,0.00022117,2]
[425292063,1781655043000,-152.0,0.00022117,2]
[425292080,1781655043000,-152.0,0.00022117,2]
[425292082,1781655043000,-151.0,0.00022117,2]
[425292088,1781655043000,-151.0,0.00022117,2]
[425292086,1781655043000,-152.0,0.00022117,2]
[425292084,1781655043000,-500.0,0.00022117,2]
[425292061,1781655043000,-500.0,0.00022117,2]
[425292053,1781655043000,-151.0,0.00022117,2]
[425292077,1781655043000,-500.0,0.00022117,2]
[425292033,1781655043000,-152.0,0.00022117,2]
[425292037,1781655043000,-500.0,0.00022117,2]
[425292022,1781655043000,-152.0,0.00022117,2]
[425292002,1781655043000,-151.0,0.00022117,2]
[425292011,1781655043000,-500.0,0.00022117,2]
[425292013,1781655043000,-1776.30922209,0.00022117,2]
[425292024,1781655043000,-500.0,0.00022117,2]
[425292020,1781655043000,-500.0,0.00022117,2]
[425292018,1781655043000,-151.0,0.00022117,2]
[425292027,1781655043000,-1842.0326633,0.00022117,2]
[425292008,1781655043000,-152.0,0.00022117,2]
[425292043,1781655043000,-1980.8648231,0.00022117,2]
[425292045,1781655043000,-152.0,0.00022117,2]
[425292029,1781655043000,-151.0,0.00022117,2]
[425292047,1781655043000,-500.0,0.00022117,2]
[425292049,1781655043000,-500.0,0.00022117,2]
[425292031,1781655043000,-500.0,0.00022117,2]
[425292035,1781655043000,-1910.18787185,0.00022117,2]
[425292041,1781655043000,-151.0,0.00022117,2]
[425292039,1781655043000,-500.0,0.00022117,2]
[425292156,1781655044000,-310.0,0.000226,2]
[425292152,1781655044000,-225.74308403,0.00022557,2]
[425292154,1781655044000,-151.0,0.00022557,2]
[425292158,1781655044000,-225.74308403,0.00022612,2]
[425292165,1781655044000,-181.08010149,0.00022665,2]
[425292168,1781655044000,-2005.9555727,0.00022665,2]
[425292172,1781655044000,-153.869701,0.00022667,2]
[425292163,1781655044000,-369.0,0.00022638,2]
[425292161,1781655044000,-151.0,0.00022612,2]
[425292170,1781655044000,-250.0030283,0.00022665,2]
[425292178,1781655044000,-225.74308403,0.00022722,2]
[425292187,1781655044000,-151.0,0.00022777,2]
[425292181,1781655044000,-151.0,0.00022722,2]
[425292194,1781655044000,-152.0,0.00023,2]
[425292196,1781655044000,-465.0,0.00023,2]
[425292185,1781655044000,-225.74308406,0.00022777,2]
[425292183,1781655044000,-150.0,0.00022756,2]
[425292174,1781655044000,-225.74308403,0.00022667,2]
[425292190,1781655044000,-500.0,0.00022823,2]
[425292198,1781655044000,-206.0,0.00023,2]
[425292201,1781655044000,-248.0,0.00023,2]
[425292207,1781655044000,-1074.0,0.00023,2]
[425292150,1781655044000,-225.845042,0.00022509,2]
[425292176,1781655044000,-151.0,0.00022667,2]
[425292192,1781655044000,-717.71,0.00022999,2]
[425292106,1781655044000,-151.0,0.00022117,2]
[425292141,1781655044000,-151.0,0.00022447,2]
[425292091,1781655044000,-500.0,0.00022117,2]
[425292095,1781655044000,-500.0,0.00022117,2]
[425292093,1781655044000,-151.0,0.00022117,2]
[425292099,1781655044000,-500.0,0.00022117,2]
[425292097,1781655044000,-151.0,0.00022117,2]
[425292101,1781655044000,-151.0,0.00022117,2]
[425292108,1781655044000,-500.0,0.00022117,2]
[425292205,1781655044000,-151.0,0.00023,2]
[425292112,1781655044000,-500.0,0.00022158,2]
[425292123,1781655044000,-225.74308403,0.00022282,2]
[425292110,1781655044000,-500.0,0.00022117,2]
[425292144,1781655044000,-225.74308403,0.00022502,2]
[425292116,1781655044000,-151.0,0.00022172,2]
[425292114,1781655044000,-225.74308403,0.00022172,2]
[425292118,1781655044000,-225.74308403,0.00022227,2]
[425292121,1781655044000,-151.0,0.00022227,2]
[425292125,1781655044000,-151.0,0.00022282,2]
[425292128,1781655044000,-225.74308403,0.00022337,2]
[425292134,1781655044000,-225.74308403,0.00022392,2]
[425292139,1781655044000,-225.74308403,0.00022447,2]
[425292137,1781655044000,-151.0,0.00022392,2]
[425292130,1781655044000,-151.0,0.00022337,2]
[425292132,1781655044000,-151.0,0.00022353,2]
[425292145,1781655044000,-151.0,0.00022502,2]
[425292103,1781655044000,-500.0,0.00022117,2]
[425292209,1781655044000,-232.0,0.00023,2]
[425292147,1781655044000,-177.912417,0.00022509,2]
[425292218,1781655044000,-1494.0,0.00023,2]
[425292275,1781655044000,-153.0,0.00024,2]
[425292266,1781655044000,-165.0,0.00024,2]
[425292279,1781655044000,-150.0,0.00024,2]
[425292288,1781655044000,-151.0,0.0002406,2]
[425292277,1781655044000,-989.0,0.00024,2]
[425292282,1781655044000,-1494.0,0.00024,2]
[425292284,1781655044000,-369.0,0.00024008,2]
[425292290,1781655044000,-185.13,0.0002406,2]
[425292298,1781655044000,-379.46368022,0.00024213,2]
[425292300,1781655044000,-169.61,0.00024237,2]
[425292303,1781655044000,-414.13413198,0.000243,2]
[425292270,1781655044000,-232.0,0.00024,2]
[425292305,1781655044000,-2236.95670847,0.00024309,2]
[425292307,1781655044000,-151.0,0.00024324,2]
[425292294,1781655044000,-502.58,0.00024174,2]
[425292309,1781655044000,-3645.6552,0.00024332,7]
[425292296,1781655044000,-893.93,0.00024174,2]
[425292311,1781655044000,-150.0,0.00024384,2]
[425292313,1781655044000,-150.0,0.00024384,2]
[425292320,1781655044000,-150.0,0.00024384,2]
[425292316,1781655044000,-150.0,0.00024384,2]
[425292318,1781655044000,-150.0,0.00024384,2]
[425292322,1781655044000,-150.0,0.00024384,2]
[425292203,1781655044000,-730.0,0.00023,2]
[425292292,1781655044000,-432.08,0.00024137,2]
[425292272,1781655044000,-164.0,0.00024,2]
[425292286,1781655044000,-153.02,0.0002406,2]
[425292264,1781655044000,-730.0,0.00024,2]
[425292216,1781655044000,-989.0,0.00023,2]
[425292212,1781655044000,-164.0,0.00023,2]
[425292214,1781655044000,-153.0,0.00023,2]
[425292220,1781655044000,-6078.0,0.00023128,2]
[425292236,1781655044000,-1020.99860096,0.00023332,7]
[425292268,1781655044000,-1074.0,0.00024,2]
[425292223,1781655044000,-414.13413198,0.000232,2]
[425292225,1781655044000,-187.78006524,0.00023213,2]
[425292239,1781655044000,-500.0,0.00023507,2]
[425292229,1781655044000,-580.0,0.00023275,7]
[425292232,1781655044000,-484.29263076,0.00023295,2]
[425292227,1781655044000,-2080.17592889,0.00023213,2]
[425292234,1781655044000,-666.0,0.000233,2]
[425292235,1781655044000,-316.0,0.000233,2]
[425292237,1781655044000,-1345.0,0.00023507,5]
[425292259,1781655044000,-206.0,0.00024,2]
[425292253,1781655044000,-168.0,0.00024,2]
[425292257,1781655044000,-465.0,0.00024,2]
[425292261,1781655044000,-248.0,0.00024,2]
[425292246,1781655044000,-2157.14243826,0.00023761,2]
[425292251,1781655044000,-2694.43146171,0.00023832,7]
[425292255,1781655044000,-153.869701,0.00024,2]
[425292248,1781655044000,-1801.16255493,0.00023832,7]
[425292243,1781655044000,-283.54449151,0.00023761,2]
[425292241,1781655044000,-161.0,0.00023667,2]
[425292344,1781655045000,-300.0,0.000247,9]
[425292355,1781655045000,-431.07023608,0.00024806,2]
[425292351,1781655045000,-600.0,0.000248,9]
[425292347,1781655045000,-407.03267132,0.000248,2]
[425292357,1781655045000,-26765.5339765,0.00024807,2]
[425292340,1781655045000,-500.0,0.00024686,2]
[425292326,1781655045000,-150.0,0.00024384,2]
[425292337,1781655045000,-233.27,0.00024658,2]
[425292331,1781655045000,-298.50745568,0.00024384,2]
[425292333,1781655045000,-484.29263076,0.00024572,2]
[425292329,1781655045000,-150.0,0.00024384,2]
[425292335,1781655045000,-1000.0,0.00024658,2]
[425292324,1781655045000,-150.0,0.00024384,2]
[425292353,1781655045000,-215.0,0.00024804,2]
[425292342,1781655045000,-500.0,0.00024686,2]
[425292360,1781655045000,-79004.5671097,0.00024807,2]
[425292349,1781655045000,-180.81539114,0.000248,2]
[425292362,1781655045000,-152.0,0.00024838,7]
[425292392,1781655045000,-150.0,0.00024899,20]
[425292394,1781655045000,-3000.0,0.00024899,2]
[425292387,1781655045000,-500.0,0.00024899,2]
[425292390,1781655045000,-615.34468037,0.00024899,2]
[425292397,1781655045000,-752503.88473191,0.000249,2]
[425292385,1781655045000,-717.71,0.00024892,2]
[425292404,1781655045000,-3744.61823413,0.000249,2]
[425292383,1781655045000,-581.69780502,0.0002489,2]
[425292381,1781655045000,-573.42,0.00024882,2]
[425292377,1781655045000,-1192.58,0.00024881,7]
[425292373,1781655045000,-2319.72410669,0.00024857,2]
[425292375,1781655045000,-779.79,0.00024881,7]
[425292370,1781655045000,-695.39793187,0.00024856,2]
[425292367,1781655045000,-599.60298507,0.00024856,2]
[425292379,1781655045000,-1129.84,0.00024881,7]
[425292364,1781655045000,-151.0,0.00024856,2]
[425293137,1781655062000,4000.0,0.00024329,120]
[425293139,1781655062000,325.37609208,0.00024162,120]
[425293138,1781655062000,4000.0,0.00023058,120]
[425293165,1781656231000,-153.0,0.00015937,2]
[425293162,1781656231000,-150.0,0.00015937,2]
[425293164,1781656231000,-151.0,0.00015937,2]
[425293161,1781656231000,-151.0,0.00015747,2]
[425293163,1781656231000,-151.0,0.00015937,2]
[425293160,1781656231000,-200.0,0.00015695,2]
[425293211,1781656232000,-500.0,0.00016037,2]
[425293206,1781656232000,-500.0,0.00016037,2]
[425293204,1781656232000,-500.0,0.00016037,2]
[425293217,1781656232000,-500.0,0.00016037,2]
[425293198,1781656232000,-332.35504473,0.00016037,2]
[425293215,1781656232000,-500.0,0.00016037,2]
[425293213,1781656232000,-500.0,0.00016037,2]
[425293195,1781656232000,-500.0,0.00016037,2]
[425293199,1781656232000,-167.64495527,0.00016037,2]
[425293219,1781656232000,-273.52820466,0.00016037,2]
[425293209,1781656232000,-500.0,0.00016037,2]
[425293231,1781656232000,-500.0,0.00016037,2]
[425293207,1781656232000,-500.0,0.00016037,2]
[425293224,1781656232000,-500.0,0.00016037,2]
[425293226,1781656232000,-500.0,0.00016037,2]
[425293229,1781656232000,-500.0,0.00016037,2]
[425293230,1781656232000,-500.0,0.00016037,2]
[425293228,1781656232000,-500.0,0.00016037,2]
[425293222,1781656232000,-226.47179534,0.00016037,2]
[425293235,1781656232000,-500.0,0.00016037,2]
[425293233,1781656232000,-500.0,0.00016037,2]
[425293234,1781656232000,-500.0,0.00016037,2]
[425293200,1781656232000,-500.0,0.00016037,2]
[425293208,1781656232000,-500.0,0.00016037,2]
[425293202,1781656232000,-500.0,0.00016037,2]
[425293180,1781656232000,-203.54196002,0.00015937,2]
[425293191,1781656232000,-500.0,0.00016037,2]
[425293167,1781656232000,-151.0,0.00015937,2]
[425293166,1781656232000,-153.0,0.00015937,2]
[425293168,1781656232000,-151.0,0.00015937,2]
[425293170,1781656232000,-151.0,0.00015937,2]
[425293176,1781656232000,-152.0,0.00015937,2]
[425293169,1781656232000,-151.0,0.00015937,2]
[425293173,1781656232000,-150.0,0.00015937,2]
[425293172,1781656232000,-152.0,0.00015937,2]
[425293171,1781656232000,-153.0,0.00015937,2]
[425293174,1781656232000,-151.0,0.00015937,2]
[425293175,1781656232000,-152.0,0.00015937,2]
[425293189,1781656232000,-151.0,0.00016037,2]
[425293178,1781656232000,-193.0,0.00015937,2]
[425293183,1781656232000,-193.0,0.00015937,2]
[425293181,1781656232000,-500.0,0.00015937,2]
[425293179,1781656232000,-500.0,0.00015937,2]
[425293184,1781656232000,-306.90359725,0.00015937,2]
[425293182,1781656232000,-193.0,0.00015937,2]
[425293185,1781656232000,-250.0,0.00015937,2]
[425293187,1781656232000,-325.0,0.00016037,2]
[425293186,1781656232000,-250.0,0.00015997,2]
[425293188,1781656232000,-153.0,0.00016037,2]
[425293190,1781656232000,-500.0,0.00016037,2]
[425293193,1781656232000,-500.0,0.00016037,2]
[425293177,1781656232000,-301.61831471,0.00015937,2]
[425293232,1781656232000,-500.0,0.00016037,2]
[425293244,1781656232000,-500.0,0.00016037,2]
[425293242,1781656232000,-500.0,0.00016037,2]
[425293266,1781656232000,-317.0,0.00016038,2]
[425293269,1781656232000,-151.0,0.00016038,2]
[425293268,1781656232000,-313.0,0.00016038,2]
[425293279,1781656232000,-151.0,0.00016038,2]
[425293277,1781656232000,-316.0,0.00016038,2]
[425293275,1781656232000,-150.0,0.00016038,2]
[425293271,1781656232000,-310.0,0.00016038,2]
[425293274,1781656232000,-309.0,0.00016038,2]
[425293278,1781656232000,-320.0,0.00016038,2]
[425293270,1781656232000,-315.0,0.00016038,2]
[425293272,1781656232000,-153.0,0.00016038,2]
[425293276,1781656232000,-320.0,0.00016038,2]
[425293273,1781656232000,-314.0,0.00016038,2]
[425293288,1781656232000,-7423.96,0.00016047,2]
[425293280,1781656232000,-319.0,0.00016038,2]
[425293287,1781656232000,-7423.96,0.00016047,2]
[425293281,1781656232000,-311.0,0.00016038,2]
[425293283,1781656232000,-312.0,0.00016038,2]
[425293286,1781656232000,-151.0,0.00016038,2]
[425293282,1781656232000,-150.0,0.00016038,2]
[425293289,1781656232000,-3670.74049982,0.00016057,2]
[425293285,1781656232000,-320.0,0.00016038,2]
[425293236,1781656232000,-500.0,0.00016037,2]
[425293267,1781656232000,-321.0,0.00016038,2]
[425293265,1781656232000,-151.0,0.00016038,2]
[425293284,1781656232000,-311.0,0.00016038,2]
[425293263,1781656232000,-150.0,0.00016038,2]
[425293243,1781656232000,-500.0,0.00016037,2]
[425293237,1781656232000,-500.0,0.00016037,2]
[425293238,1781656232000,-500.0,0.00016037,2]
[425293247,1781656232000,-500.0,0.00016037,2]
[425293246,1781656232000,-500.0,0.00016037,2]
[425293241,1781656232000,-500.0,0.00016037,2]
[425293245,1781656232000,-500.0,0.00016037,2]
[425293239,1781656232000,-500.0,0.00016037,2]
[425293249,1781656232000,-500.0,0.00016037,2]
[425293252,1781656232000,-500.0,0.00016037,2]
[425293250,1781656232000,-389.14969705,0.00016037,2]
[425293240,1781656232000,-500.0,0.00016037,2]
[425293251,1781656232000,-500.0,0.00016037,2]
[425293262,1781656232000,-150.0,0.00016038,2]
[425293248,1781656232000,-500.0,0.00016037,2]
[425293264,1781656232000,-150.0,0.00016038,2]
[425293259,1781656232000,-151.0,0.00016038,2]
[425293258,1781656232000,-151.0,0.00016038,2]
[425293261,1781656232000,-151.0,0.00016038,2]
[425293255,1781656232000,-151.0,0.00016038,2]
[425293257,1781656232000,-151.0,0.00016038,2]
[425293256,1781656232000,-151.0,0.00016038,2]
[425293254,1781656232000,-151.0,0.00016038,2]
[425293253,1781656232000,-150.0,0.00016038,2]
[425293260,1781656232000,-150.0,0.00016038,2]
[425293294,1781656233000,-6182.02198027,0.00016057,2]
[425293293,1781656233000,-2000.0,0.00016057,2]
[425293291,1781656233000,-165858.75738123,0.00016057,2]
[425293292,1781656233000,-18490.01715817,0.00016057,2]
[425293290,1781656233000,-760.3859301,0.00016057,2]
[425293296,1781656238000,-451.7681818,0.00016057,2]
[425293297,1781656238000,-4500.0,0.00016057,2]
[425293295,1781656238000,-423.0,0.00016057,2]
[425293349,1781656239000,-140538.3457534,0.00016057,2]
[425293355,1781656243000,-310.0,0.0001606,2]
[425293380,1781656243000,-318.0,0.00016138,2]
[425293383,1781656243000,-151.0,0.00016238,2]
[425293377,1781656243000,-309.0,0.00016138,2]
[425293385,1781656243000,-150.0,0.00016238,2]
[425293379,1781656243000,-315.0,0.00016138,2]
[425293376,1781656243000,-151.0,0.00016138,2]
[425293384,1781656243000,-151.0,0.00016238,2]
[425293381,1781656243000,-164.78,0.00016237,2]
[425293378,1781656243000,-150.0,0.00016138,2]
[425293374,1781656243000,-150.0,0.00016138,2]
[425293375,1781656243000,-151.0,0.00016138,2]
[425293372,1781656243000,-151.0,0.00016138,2]
[425293373,1781656243000,-152.0,0.00016138,2]
[425293371,1781656243000,-153.0,0.00016138,2]
[425293370,1781656243000,-150.0,0.00016138,2]
[425293367,1781656243000,-153.0,0.00016138,2]
[425293369,1781656243000,-153.0,0.00016138,2]
[425293368,1781656243000,-150.0,0.00016138,2]
[425293366,1781656243000,-151.0,0.00016138,2]
[425293364,1781656243000,-152.0,0.00016138,2]
[425293362,1781656243000,-151.0,0.00016138,2]
[425293361,1781656243000,-151.0,0.00016138,2]
[425293359,1781656243000,-150.0,0.00016138,2]
[425293360,1781656243000,-151.0,0.00016138,2]
[425293365,1781656243000,-150.0,0.00016138,2]
[425293363,1781656243000,-150.0,0.00016138,2]
[425293357,1781656243000,-320.0,0.0001606,2]
[425293353,1781656243000,-152.0,0.00016057,2]
[425293352,1781656243000,-207530.15881521,0.00016057,2]
[425293382,1781656243000,-150.0,0.00016238,2]
[425293389,1781656243000,-151.0,0.00016238,2]
[425293358,1781656243000,-150.0,0.00016095,2]
[425293391,1781656243000,-274.0,0.00016414,2]
[425293404,1781656243000,-255.77,0.0001718,2]
[425293411,1781656243000,-1513.78092601,0.000174,2]
[425293412,1781656243000,-307.38239741,0.000174,2]
[425293408,1781656243000,-203.40240578,0.00017299,2]
[425293410,1781656243000,-307.38239741,0.000173,2]
[425293409,1781656243000,-1513.78092601,0.000173,2]
[425293405,1781656243000,-500.0,0.00017299,2]
[425293413,1781656243000,-250.0,0.00017531,2]
[425293415,1781656243000,-500.0,0.00017531,2]
[425293418,1781656243000,-500.0,0.00017531,2]
[425293414,1781656243000,-600.0,0.00017531,2]
[425293420,1781656243000,-1513.78092601,0.000176,2]
[425293419,1781656243000,-300.0,0.00017531,2]
[425293386,1781656243000,-151.0,0.00016238,2]
[425293417,1781656243000,-193.0,0.00017531,2]
[425293407,1781656243000,-500.0,0.00017299,2]
[425293416,1781656243000,-500.0,0.00017531,2]
[425293402,1781656243000,-151.0,0.000171,2]
[425293406,1781656243000,-289.46679336,0.00017299,2]
[425293390,1781656243000,-150.0,0.00016255,2]
[425293388,1781656243000,-151.0,0.00016238,2]
[425293397,1781656243000,-197.82,0.00016924,2]
[425293396,1781656243000,-160.0,0.00016459,2]
[425293394,1781656243000,-152.0,0.00016438,2]
[425293392,1781656243000,-151.0,0.00016438,2]
[425293387,1781656243000,-151.0,0.00016238,2]
[425293395,1781656243000,-152.0,0.00016438,2]
[425293399,1781656243000,-225.845045,0.00017066,2]
[425293398,1781656243000,-331.32481294,0.00017,2]
[425293403,1781656243000,-307.38239741,0.000171,2]
[425293401,1781656243000,-1513.78092601,0.000171,2]
[425293400,1781656243000,-177.912417,0.00017066,2]
[425293393,1781656243000,-151.0,0.00016438,2]
[425293443,1781656244000,-5528.0,0.000199,5]
[425293444,1781656244000,-154.0,0.0002,2]
[425293446,1781656244000,-155.0,0.0002,2]
[425293450,1781656244000,-174.0,0.0002,2]
[425293453,1781656244000,-741.0,0.0002,2]
[425293451,1781656244000,-154.0,0.0002,2]
[425293445,1781656244000,-349.0,0.0002,2]
[425293449,1781656244000,-805.0,0.0002,2]
[425293452,1781656244000,-153.0,0.0002,2]
[425293454,1781656244000,-4225.0,0.0002,2]
[425293448,1781656244000,-548.0,0.0002,2]
[425293465,1781656244000,-349.0,0.00021,2]
[425293461,1781656244000,-166.66,0.00020966,2]
[425293458,1781656244000,-166.66,0.00020533,2]
[425293463,1781656244000,-164.0,0.00021,2]
[425293455,1781656244000,-1121.0,0.0002,2]
[425293447,1781656244000,-186.0,0.0002,2]
[425293442,1781656244000,-170.02,0.00019893,2]
[425293425,1781656244000,-166.26063995,0.00018,2]
[425293441,1781656244000,-200.0,0.0001984,2]
[425293423,1781656244000,-1513.78092601,0.000178,2]
[425293424,1781656244000,-307.38239741,0.000178,2]
[425293422,1781656244000,-1396.20013977,0.00017641,2]
[425293467,1781656244000,-155.0,0.00021,2]
[425293421,1781656244000,-307.38239741,0.000176,2]
[425293429,1781656244000,-350.02,0.00018008,2]
[425293428,1781656244000,-1141.4468095,0.00018,2]
[425293430,1781656244000,-2000.0,0.00018145,2]
[425293431,1781656244000,-1141.4468095,0.000182,2]
[425293432,1781656244000,-1141.4468095,0.000184,2]
[425293436,1781656244000,-1141.4468095,0.000187,2]
[425293437,1781656244000,-10696.840511,0.0001898,2]
[425293434,1781656244000,-150.99,0.00018533,2]
[425293433,1781656244000,-1141.4468095,0.000185,2]
[425293435,1781656244000,-1500.0,0.00018683,2]
[425293440,1781656244000,-1613.0535,0.00019779,2]
[425293439,1781656244000,-1555.5,0.00019231,2]
[425293438,1781656244000,-1000.0,0.00019203,2]
[425293469,1781656244000,-186.0,0.00021,2]
[425293456,1781656244000,-2904.68,0.0002002,2]
[425293459,1781656244000,-1734.62772924,0.00020875,2]
[425293490,1781656244000,-174.0,0.00022,2]
[425293498,1781656244000,-1068.11,0.00022519,2]
[425293489,1781656244000,-480.0,0.00022,2]
[425293495,1781656244000,-166.66,0.00022262,30]
[425293497,1781656244000,-1030.0,0.00022519,2]
[425293493,1781656244000,-1270.05394723,0.00022063,2]
[425293503,1781656244000,-151.0,0.00022519,2]
[425293502,1781656244000,-500.0,0.00022519,2]
[425293501,1781656244000,-151.0,0.00022519,2]
[425293500,1781656244000,-578.20924308,0.00022519,2]
[425293505,1781656244000,-500.0,0.00022519,2]
[425293504,1781656244000,-1934.38338736,0.00022519,2]
[425293506,1781656244000,-500.0,0.00022519,2]
[425293507,1781656244000,-152.0,0.00022519,2]
[425293509,1781656244000,-500.0,0.00022519,2]
[425293508,1781656244000,-500.0,0.00022519,2]
[425293457,1781656244000,-1672.7364795,0.00020327,2]
[425293494,1781656244000,-410.0,0.00022117,2]
[425293496,1781656244000,-158.02015882,0.00022519,2]
[425293499,1781656244000,-754.45848039,0.00022519,2]
[425293491,1781656244000,-741.0,0.00022,2]
[425293492,1781656244000,-1121.0,0.00022,2]
[425293478,1781656244000,-166.66,0.00021398,2]
[425293472,1781656244000,-805.0,0.00021,2]
[425293475,1781656244000,-741.0,0.00021,2]
[425293474,1781656244000,-168.0,0.00021,2]
[425293471,1781656244000,-548.0,0.00021,2]
[425293479,1781656244000,-1798.80895522,0.00021423,2]
[425293477,1781656244000,-500.0,0.00021332,2]
[425293476,1781656244000,-1121.0,0.00021,2]
[425293473,1781656244000,-174.0,0.00021,2]
[425293481,1781656244000,-166.66,0.0002183,2]
[425293480,1781656244000,-193.67,0.00021588,2]
[425293484,1781656244000,-349.0,0.00022,2]
[425293488,1781656244000,-805.0,0.00022,2]
[425293487,1781656244000,-548.0,0.00022,2]
[425293485,1781656244000,-155.0,0.00022,2]
[425293486,1781656244000,-186.0,0.00022,2]
[425293483,1781656244000,-1865.36488656,0.00021971,2]
[425293482,1781656244000,-5000.0,0.00021918,2]
[425293543,1781656245000,-500.0,0.00022519,2]
[425293533,1781656245000,-151.0,0.00022519,2]
[425293532,1781656245000,-500.0,0.00022519,2]
[425293530,1781656245000,-500.0,0.00022519,2]
[425293535,1781656245000,-500.0,0.00022519,2]
[425293531,1781656245000,-152.0,0.00022519,2]
[425293537,1781656245000,-152.0,0.00022519,2]
[425293539,1781656245000,-500.0,0.00022519,2]
[425293542,1781656245000,-500.0,0.00022519,2]
[425293536,1781656245000,-151.0,0.00022519,2]
[425293538,1781656245000,-500.0,0.00022519,2]
[425293540,1781656245000,-151.0,0.00022519,2]
[425293546,1781656245000,-500.0,0.00022519,2]
[425293544,1781656245000,-151.0,0.00022519,2]
[425293547,1781656245000,-151.0,0.00022519,2]
[425293545,1781656245000,-500.0,0.00022519,2]
[425293529,1781656245000,-151.0,0.00022519,2]
[425293541,1781656245000,-152.0,0.00022519,2]
[425293528,1781656245000,-500.0,0.00022519,2]
[425293548,1781656245000,-500.0,0.00022519,2]
[425293526,1781656245000,-500.0,0.00022519,2]
[425293511,1781656245000,-670.58624095,0.00022519,2]
[425293512,1781656245000,-151.0,0.00022519,2]
[425293510,1781656245000,-152.0,0.00022519,2]
[425293513,1781656245000,-500.0,0.00022519,2]
[425293514,1781656245000,-500.0,0.00022519,2]
[425293515,1781656245000,-152.0,0.00022519,2]
[425293516,1781656245000,-151.0,0.00022519,2]
[425293519,1781656245000,-152.0,0.00022519,2]